[Event "10th Sharjah Cup Women 2020"]
[Site "Sharjah"]
[Date "2020.01.12"]
[Round "9.21"]
[White "Alsabbagh Eman"]
[Black "Al Ali, Aisha Saif"]
[Result "1/2-1/2"]
[ECO "B80"]
[WhiteElo "1053"]
[BlackElo "1499"]
[Annotator "NA"]
[PlyCount "42"]
[EventDate "2020.01.04"]
[EventType "swiss"]
[EventCountry "UAE"]
[SourceTitle "playchess.com"]
[Source "ChessBase"]
[SourceQuality "1"]
[TimeControl "5400+30"]

1. e4 {[%emt 0:08:11]} c5 {[%emt 0:00:00]} 2. Nf3 {[%emt 0:00:36]} e6 {[%emt 0:00:00]} 3. d4 {[%emt 0:03:02]} cxd4 {[%emt 0:00:11]} 4. Nxd4 {[%emt 0:00:11]} Nf6 {[%emt 0:00:12]} 5. Nc3 {[%emt 0:00:22]} d6 {[%emt 0:00:35]} 6. Bd3 {[%emt 0:02:00]} a6 {[%emt 0:01:22]} 7. h3 {[%emt 0:04:36]} Qc7 {[%emt 0:04:18]} 8. Be3 {[%emt 0:02:16]} b5 {[%emt 0:04:22]} 9. O-O {[%emt 0:04:16]} Bb7 {[%emt 0:00:15]} 10. Qd2 {[%emt 0:02:20]} b4 {[%emt 0:04:41]} 11. Na4 {[%emt 0:05:01]} Qa5 {[%emt 0:29:57]} 12. b3 {[%emt 0:06:00]} Bxe4 {[%emt 0:04:33]} 13. a3 {[%emt 0:06:00]} d5 {[%emt 0:05:30]} 14. f3 {[%emt 0:08:43]} Bxd3 {[%emt 0:02:07]} 15. cxd3 {[%emt 0:02:39]} e5 {[%emt 0:01:46]} 16. Nc2 {[%emt 0:05:44]} d4 {[%emt 0:01:10]} 17. Bf2 {[%emt 0:03:35]} Nc6 {[%emt 0:00:54]} 18. Rfe1 {[%emt 0:06:24]} Be7 {[%emt 0:05:04]} 19. axb4 {[%emt 0:04:23]} Nxb4 {[%emt 0:00:39]} 20. Nb2 {[%emt 0:03:29]} Qb5 {[%emt 0:05:32]} 21. Nc4 {[%emt 0:02:11]} Bf8 1/2-1/2

[Event "10th Sharjah Cup Women 2020"]
[Site "Sharjah"]
[Date "2020.01.12"]
[Round "9.22"]
[White "Khalil, Reem"]
[Black "Al-Shamsi, Ousha"]
[Result "1/2-1/2"]
[ECO "C50"]
[WhiteElo "1295"]
[BlackElo "1484"]
[Annotator "NA"]
[PlyCount "98"]
[EventDate "2020.01.04"]
[EventType "swiss"]
[EventCountry "UAE"]
[SourceTitle "playchess.com"]
[Source "ChessBase"]
[SourceQuality "1"]
[TimeControl "5400+30"]

1. e4 {[%emt 0:00:00]} e5 {[%emt 0:00:00]} 2. Nf3 {[%emt 0:00:00]} Nc6 {[%emt 0:00:00]} 3. Bc4 {[%emt 0:00:00]} Bc5 {[%emt 0:00:00]} 4. d3 {[%emt 0:00:00]} Nf6 {[%emt 0:00:00]} 5. Nbd2 {[%emt 0:00:00]} O-O {[%emt 0:00:15]} 6. c3 {[%emt 0:00:10]} d5 {[%emt 0:00:40]} 7. Bb3 {[%emt 0:00:07]} Bg4 {[%emt 0:07:27]} 8. O-O {[%emt 0:00:57]} Re8 {[%emt 0:22:15]} 9. h3 {[%emt 0:00:16]} Bh5 {[%emt 0:00:18]} 10. Re1 {[%emt 0:03:08]} Qd7 {[%emt 0:04:13]} 11. Qe2 {[%emt 0:00:43]} g5 {[%emt 0:16:39]} 12. exd5 {[%emt 0:04:28]} Nxd5 {[%emt 0:00:29]} 13. Ne4 {[%emt 0:00:50]} Be7 {[%emt 0:07:32]} 14. g4 {[%emt 0:01:05]} Bg6 {[%emt 0:17:57]} 15. Bxg5 {[%emt 0:07:47]} Nf4 {[%emt 0:06:47]} 16. Bxf4 {[%emt 0:01:56]} exf4 {[%emt 0:00:02]} 17. Nfd2 {[%emt 0:06:13]} Kh8 {[%emt 0:03:08]} 18. d4 {[%emt 0:12:41]} f5 {[%emt 0:01:02]} 19. d5 {[%emt 0:03:32]} Na5 {[%emt 0:01:12]} 20. gxf5 {[%emt 0:07:44]} Nxb3 {[%emt 0:00:33]} 21. Nxb3 {[%emt 0:06:59]} Bxf5 {[%emt 0:01:22]} 22. Qh5 {[%emt 0:08:31]} Qxd5 {[%emt 0:06:59]} 23. Nf6 {[%emt 0:03:15]} Rg8+ {[%emt 0:00:58]} 24. Ng4 {[%emt 0:01:12]} Bd6 {[%emt 0:01:36]} 25. Rad1 {[%emt 0:01:50]} Bxg4 {[%emt 0:00:22]} 26. Qxd5 {[%emt 0:03:32]} Bf3+ {[%emt 0:00:16]} 27. Qxg8+ {[%emt 0:01:04]} Rxg8+ {[%emt 0:00:02]} 28. Kf1 {[%emt 0:00:44]} Bxd1 {[%emt 0:00:46]} 29. Rxd1 {[%emt 0:00:02]} Re8 {[%emt 0:00:45]} 30. Kg2 {[%emt 0:04:13]} Re2 {[%emt 0:00:34]} 31. Rd2 {[%emt 0:00:44]} Rxd2 {[%emt 0:00:26]} 32. Nxd2 {[%emt 0:00:04]} Kg7 {[%emt 0:00:09]} 33. Kf3 {[%emt 0:00:33]} Kg6 {[%emt 0:00:38]} 34. Ke4 {[%emt 0:01:10]} Kf6 {[%emt 0:00:49]} 35. h4 {[%emt 0:02:09]} h5 36. Nc4 {[%emt 0:03:28]} Bc5 {[%emt 0:00:48]} 37. f3 {[%emt 0:04:16]} Bf2 {[%emt 0:00:05]} 38. Kxf4 {[%emt 0:01:14]} Bxh4 {[%emt 0:00:02]} 39. Na5 {[%emt 0:01:04]} b6 {[%emt 0:00:22]} 40. Nc6 {[%emt 0:01:08]} a5 {[%emt 0:01:06]} 41. b4 axb4 {[%emt 0:00:25]} 42. cxb4 {[%emt 0:01:22]} Be1 {[%emt 0:01:23]} 43. a4 {[%emt 0:01:12]} h4 {[%emt 0:00:32]} 44. Kg4 {[%emt 0:00:26]} Ke6 {[%emt 0:00:13]} 45. Nd4+ {[%emt 0:02:36]} Ke5 {[%emt 0:00:50]} 46. Nc2 {[%emt 0:00:08]} Bg3 {[%emt 0:00:29]} 47. a5 {[%emt 0:02:04]} bxa5 {[%emt 0:00:27]} 48. bxa5 {[%emt 0:00:06]} Kd5 {[%emt 0:00:22]} 49. a6 {[%emt 0:02:01]} Kc6 {[%emt 0:00:28]} 1/2-1/2

[Event "10th Sharjah Cup Women 2020"]
[Site "Sharjah"]
[Date "2020.01.12"]
[Round "9.23"]
[White "Fatima, Saif Al-Ali"]
[Black "Mariam Mohammed, Almaeeni"]
[Result "1-0"]
[ECO "C10"]
[WhiteElo "1339"]
[BlackElo "1136"]
[Annotator "NA"]
[PlyCount "41"]
[EventDate "2020.01.04"]
[EventType "swiss"]
[EventCountry "UAE"]
[SourceTitle "playchess.com"]
[Source "ChessBase"]
[SourceQuality "1"]
[TimeControl "5400+30"]

1. e4 {[%emt 0:00:00]} e6 {[%emt 0:00:00]} 2. d4 {[%emt 0:00:22]} d5 {[%emt 0:00:00]} 3. Nc3 {[%emt 0:00:09]} dxe4 {[%emt 0:00:00]} 4. Nxe4 {[%emt 0:00:55]} Nd7 {[%emt 0:00:08]} 5. Nf3 {[%emt 0:02:06]} Ngf6 {[%emt 0:02:36]} 6. Nxf6+ {[%emt 0:00:12]} Nxf6 {[%emt 0:00:13]} 7. Bd3 {[%emt 0:00:24]} Bd6 {[%emt 0:00:23]} 8. O-O {[%emt 0:01:26]} O-O {[%emt 0:00:07]} 9. Bg5 {[%emt 0:01:35]} b6 {[%emt 0:01:05]} 10. Be4 {[%emt 0:05:12]} Rb8 {[%emt 0:01:05]} 11. Qd3 {[%emt 0:05:40]} h6 {[%emt 0:01:06]} 12. Bh4 {[%emt 0:00:25]} g5 {[%emt 0:01:07]} 13. Bg3 {[%emt 0:00:45]} Nxe4 {[%emt 0:00:33]} 14. Qxe4 {[%emt 0:00:44]} Bb7 {[%emt 0:00:09]} 15. Qd3 {[%emt 0:01:58]} Qf6 {[%emt 0:00:19]} 16. Ne5 {[%emt 0:09:06]} Bxe5 {[%emt 0:00:48]} 17. Bxe5 {[%emt 0:00:05]} Qe7 {[%emt 0:01:09]} 18. Bg3 {[%emt 0:08:19]} f5 {[%emt 0:00:21]} 19. Be5 {[%emt 0:00:10]} f4 {[%emt 0:00:22]} 20. Qg6+ {[%emt 0:00:11]} Qg7 {[%emt 0:00:12]} 21. Qxg7# {[%emt 0:00:06]} 1-0